bitfinex/quotes_ETHUSD_20250430
["timestamp","ask_amount","ask_price","bid_price","bid_amount"]
[1746036576851,5.59581003,1787.1,1786.7,11.19345014]
[1746036577056,5.59607819,1787.0,1786.6,5.59704888]
[1746036577273,5.59607819,1787.0,1786.7,5.59686461]
[1746036577480,11.19227992,1787.0,1786.6,5.59701418]
[1746036577684,5.59647984,1786.9,1786.5,11.65737548]
[1746036577997,5.5966068,1786.8,1786.5,11.65737548]
[1746036578160,5.5969845,1786.7,1786.5,6.06]
[1746036578560,5.59722377,1786.6,1786.5,6.06]
[1746036579183,5.5969845,1786.7,1786.5,6.06]
[1746036579408,0.9339,1786.9,1786.5,11.65740138]
[1746036579409,5.59641275,1786.9,1786.5,11.65740138]
[1746036579608,5.59668928,1786.8,1786.5,11.65740138]
[1746036579906,0.9339,1787.2,1786.6,5.59702755]
[1746036580206,5.59595478,1787.1,1786.7,5.59677134]
[1746036580408,0.893,1787.5,1787.0,5.59566542]
[1746036580716,5.59483849,1787.4,1787.1,5.65148604]
[1746036580933,5.59483849,1787.4,1787.0,5.59578315]
[1746036581227,5.59504498,1787.3,1787.0,5.59578315]
[1746036581389,5.59504498,1787.3,1786.9,5.5962529]
[1746036581574,5.5951935,1787.3,1786.9,5.5962529]
[1746036581985,5.59514472,1787.3,1786.7,7.8606]
[1746036582183,0.893,1787.5,1787.0,5.59584897]
[1746036582475,5.59485971,1787.4,1787.1,0.05595445]
[1746036582676,5.59485971,1787.4,1787.0,5.59583896]
[1746036582870,11.18985725,1787.4,1787.0,5.59583896]
[1746036583106,11.18985725,1787.4,1786.9,5.59609306]
[1746036583107,5.59507123,1787.3,1786.9,5.59609306]
[1746036583412,5.59507123,1787.3,1787.0,5.59596511]
[1746036583718,5.59565617,1787.2,1786.7,14.28494472]
[1746036584015,5.59561014,1787.2,1786.7,19.05408257]
[1746036584221,5.59561014,1787.2,1786.9,5.59625178]
[1746036584579,5.59489163,1787.4,1787.0,5.59577769]
[1746036584908,11.18984458,1787.4,1787.0,5.59577769]
[1746036585096,5.5950744,1787.3,1787.0,5.59577769]
[1746036585307,5.59555835,1787.2,1786.9,5.59628222]
[1746036585878,5.5950744,1787.3,1786.9,5.65214153]
[1746036586098,6.48768701,1787.5,1787.1,5.59564431]
[1746036586418,5.59487837,1787.4,1787.0,5.5957652]
[1746036586572,5.59487837,1787.4,1787.0,5.65171709]
[1746036586785,5.59487837,1787.4,1787.0,11.24747365]
[1746036586991,5.59487837,1787.4,1787.0,11.19152176]
[1746036587191,5.59466083,1787.5,1787.1,5.59556704]
[1746036587391,5.59474114,1787.4,1787.1,5.59556704]
[1746036587690,5.59474985,1787.4,1787.0,5.59591789]
[1746036587890,5.59521453,1787.3,1787.1,0.05595063]
[1746036588193,5.59483671,1787.4,1787.0,5.59580129]
[1746036588508,5.59553245,1787.2,1786.8,5.59640547]
[1746036588823,5.59578151,1787.1,1786.7,13.45732559]
[1746036589127,6.09722276,1787.4,1786.7,0.8936]
[1746036589425,6.53777319,1787.2,1786.7,5.59661728]
[1746036589595,5.59568259,1787.1,1786.6,5.65305209]
[1746036589925,5.59598084,1787.0,1786.6,5.65305209]
[1746036590110,5.5951176,1787.3,1786.5,6.06]
[1746036590111,5.59542419,1787.2,1786.5,11.65729074]
[1746036590311,5.59617313,1787.0,1786.6,5.59705879]
[1746036590626,5.5963079,1786.9,1786.6,5.59722158]
[1746036590943,5.5963079,1786.9,1786.4,0.9724]
[1746036590944,5.59677915,1786.8,1786.3,5.59805562]
[1746036591127,5.59675143,1786.8,1786.4,5.59755749]
[1746036591427,5.59675143,1786.8,1786.4,5.59785042]
[1746036591596,11.19365678,1786.8,1786.4,5.59763371]
[1746036591790,5.5970961,1786.7,1786.4,5.59777345]
[1746036592022,0.9209,1786.9,1786.4,5.59777345]
[1746036592023,6.51740304,1786.9,1786.5,5.5973015]
[1746036592325,6.51722081,1786.9,1786.6,5.59720562]
[1746036592527,11.19287847,1786.9,1786.5,5.5973015]
[1746036592823,5.59662016,1786.8,1786.5,5.5973015]
[1746036593025,5.59632081,1786.9,1786.5,5.59740864]
[1746036593903,5.59704873,1786.7,1786.3,11.19601552]
[1746036594232,5.59644444,1786.9,1786.5,5.59734501]
[1746036594454,5.59571087,1787.1,1786.8,5.59649394]
[1746036594670,5.59571087,1787.1,1786.8,5.59654877]
[1746036594832,5.59566432,1787.1,1786.7,5.59672768]
[1746036595237,6.50766751,1787.2,1786.7,5.6526831]
[1746036595544,6.50782646,1787.2,1786.8,5.59638239]
[1746036595749,5.59497127,1787.4,1786.9,5.5960083]
[1746036595921,0.9095,1787.5,1786.9,5.5960083]
[1746036596121,11.19059533,1787.3,1786.9,5.5960083]
[1746036596324,5.59535508,1787.2,1786.9,5.5960083]
[1746036596556,5.59529329,1787.3,1786.9,5.59627809]
[1746036596743,5.59543302,1787.2,1786.8,12.32652922]
[1746036596956,1.55986127,1787.5,1786.9,5.596187]
[1746036597156,5.59480975,1787.4,1787.0,5.59571378]
[1746036597333,6.50395273,1787.5,1787.1,5.5955439]
[1746036597536,6.54602878,1787.8,1787.1,5.5955439]
[1746036597778,5.59426389,1787.6,1787.2,5.59532926]
[1746036597932,5.59453932,1787.5,1787.1,5.59546517]
[1746036598251,5.5947574,1787.4,1787.0,5.59582142]
[1746036598461,0.65460288,1787.7,1787.0,0.05594703]
[1746036598784,5.59471858,1787.4,1787.0,5.65181904]
[1746036599077,5.59420758,1787.6,1787.1,5.59540287]
[1746036599225,5.59409263,1787.6,1786.8,6.73]
[1746036599430,5.59549668,1787.2,1786.8,12.38237673]
[1746036599630,11.19064259,1787.3,1786.9,5.59612266]
[1746036599874,5.59552914,1787.2,1786.8,12.32642256]
[1746036600173,6.57970102,1787.3,1786.8,6.73]
[1746036600372,5.59628406,1786.9,1786.8,6.73]
[1746036600681,5.59614496,1787.0,1786.6,6.53316785]
[1746036600829,5.59614496,1787.0,1786.6,6.58913065]
[1746036601033,5.59584376,1787.1,1786.7,5.59674536]
[1746036601336,5.59718907,1786.7,1786.4,6.73]
[1746036601677,5.59716465,1786.7,1786.3,12.60655687]
[1746036601939,5.59716465,1786.7,1786.3,12.60648621]
[1746036602220,5.596739,1786.8,1786.4,5.59773729]
[1746036602422,5.59741958,1786.6,1786.3,7.0085]
[1746036602587,5.59709486,1786.7,1786.4,0.0559732]
[1746036602908,6.52303116,1786.8,1786.4,5.59781813]
[1746036603122,5.59725391,1786.6,1786.3,11.65794515]
[1746036603327,6.52306762,1786.8,1786.4,5.59778966]
[1746036603490,6.52306762,1786.8,1786.4,5.5976647]
[1746036603689,2.03833943,1787.1,1786.3,6.06]
[1746036603894,5.59631591,1786.9,1786.4,5.65366536]
[1746036604127,0.9192,1787.1,1786.3,11.65814213]
[1746036604329,6.51486688,1787.1,1786.8,5.59651535]
[1746036604634,5.59610722,1787.0,1786.6,5.59716342]
[1746036604852,5.59630462,1786.9,1786.5,12.09532128]
[1746036605434,5.59610394,1787.0,1786.6,5.59717672]
[1746036605651,5.59647557,1786.9,1786.5,12.09535311]
[1746036605852,0.9192,1787.1,1786.5,12.09540194]
[1746036606010,5.59643352,1786.9,1786.6,5.59721719]
[1746036606210,5.59541167,1787.2,1786.7,5.65258615]
[1746036606409,0.9242,1787.3,1786.7,5.65258615]
[1746036606410,5.5956969,1787.1,1786.7,5.65275421]
[1746036606724,5.59587558,1787.1,1786.7,5.59673424]
[1746036606940,5.59624685,1787.0,1786.6,5.59701084]
[1746036607254,5.59606179,1787.0,1786.6,5.65297407]
[1746036607422,11.19181779,1787.1,1786.7,5.59669767]
[1746036607753,5.59613173,1787.0,1786.6,5.59702931]
[1746036607924,0.9242,1787.3,1786.7,5.59675695]
[1746036608123,1.61750318,1787.3,1786.6,5.59702942]
[1746036608323,5.59660253,1786.8,1786.5,6.498]
[1746036608726,11.19409375,1786.7,1786.5,6.498]
[1746036608922,5.59673591,1786.8,1786.5,6.498]
[1746036609111,11.19358249,1786.8,1786.5,6.498]
[1746036609385,11.19364492,1786.8,1786.5,6.498]
[1746036609660,5.59673591,1786.8,1786.5,6.498]
[1746036609806,5.59638545,1786.9,1786.5,6.55396954]
[1746036610008,5.59638545,1786.9,1786.5,17.74862326]
[1746036610332,5.59490445,1787.4,1786.7,0.8958]
[1746036610514,5.59490445,1787.4,1786.9,5.59601978]
[1746036610515,5.59514429,1787.3,1786.9,5.59601978]
[1746036611067,7.50313014,1787.9,1787.3,0.939]
[1746036611213,5.59353542,1787.8,1787.4,0.05593907]
[1746036611555,5.59353542,1787.8,1787.3,6.58980168]
[1746036611865,5.5944108,1787.5,1787.3,0.939]
[1746036612016,5.59422987,1787.6,1787.3,0.939]
[1746036612214,5.59357373,1787.8,1787.3,0.939]
[1746036612509,5.59269448,1788.1,1787.6,5.59408114]
[1746036612826,5.59263391,1788.1,1787.7,5.64959666]
[1746036613165,5.59207205,1788.3,1787.9,5.59295579]
[1746036613521,6.51554157,1788.5,1788.1,5.59247141]
[1746036613728,6.55037553,1789.0,1788.4,5.59131886]
[1746036613913,0.9605,1789.0,1788.4,0.9305]
[1746036614255,5.5903838,1788.8,1788.4,6.52206377]
[1746036614550,5.59016458,1788.9,1788.4,7.24387761]
[1746036614753,5.59016458,1788.9,1788.5,6.497]
[1746036615243,5.59016458,1788.9,1788.5,12.08822292]
[1746036615550,5.5906837,1788.7,1788.5,6.497]
[1746036615920,5.59159571,1788.4,1788.1,13.5156]
[1746036616126,5.59065242,1788.7,1788.2,0.05591458]
[1746036616322,5.59107583,1788.6,1788.2,5.64800099]
[1746036616524,5.59058763,1788.8,1788.2,0.05591458]
[1746036616725,6.55924353,1789.1,1788.1,16.01238845]
[1746036616726,5.59126225,1788.6,1788.1,6.5530075]
[1746036616971,11.18116587,1788.8,1788.3,5.59168943]
[1746036617177,5.5905334,1788.8,1788.3,5.64759864]
[1746036617382,5.5905334,1788.8,1788.3,5.64756853]
[1746036617692,5.58996609,1789.0,1788.5,11.18211561]
[1746036617848,11.17996498,1789.0,1788.5,12.08605603]
[1746036618053,5.58957174,1789.1,1788.7,5.59048935]
[1746036618252,5.58957174,1789.1,1788.7,5.59065242]
[1746036618253,5.58954607,1789.1,1788.7,5.59065242]
[1746036618552,11.17922308,1789.1,1788.7,5.59065242]
[1746036618757,5.58954607,1789.1,1788.7,5.59065242]
[1746036619179,5.58954607,1789.1,1788.6,6.57997719]
[1746036619392,5.58954607,1789.1,1788.6,6.57993808]
[1746036619701,5.58982397,1789.0,1788.6,7.88743189]
[1746036619866,5.58960156,1789.1,1788.6,2.29669381]
[1746036620061,5.58960156,1789.1,1788.7,5.59063154]
[1746036620866,5.58960156,1789.1,1788.6,2.29669381]
[1746036620867,5.58980574,1789.0,1788.6,7.88751018]
[1746036621070,5.58954079,1789.1,1788.7,5.59055137]
[1746036621269,5.58931386,1789.2,1788.8,5.59032997]
[1746036621600,5.58945106,1789.1,1788.7,6.93830638]
[1746036621780,5.58963429,1789.1,1788.7,5.64639643]
[1746036621957,5.58963429,1789.1,1788.7,0.05589621]
[1746036622291,5.58984056,1789.0,1788.6,7.88747783]
[1746036622590,11.17979511,1789.0,1788.6,6.63586163]
[1746036622906,5.58928793,1789.2,1788.7,5.59045434]
[1746036623068,0.9567,1789.4,1788.7,6.06]
[1746036623069,6.5453494,1789.4,1788.7,6.06]
[1746036623415,0.005,1789.4,1788.7,6.06]
[1746036623614,5.58956947,1789.1,1788.7,11.6504042]
[1746036624089,5.58990375,1789.0,1788.7,6.06]
[1746036624297,5.58990375,1789.0,1788.7,11.65064008]
[1746036624530,6.52970789,1789.4,1788.7,7.88865171]
[1746036624664,5.58923743,1789.2,1788.8,5.59016887]
[1746036624861,11.17858786,1789.2,1788.8,5.59016887]
[1746036625096,5.58953688,1789.1,1788.7,11.65050107]
[1746036625393,5.58877896,1789.3,1788.7,6.06]
[1746036625592,5.59013284,1788.9,1788.7,6.06]
[1746036625800,5.59033989,1788.8,1788.7,6.06]
[1746036626596,5.59159024,1788.4,1788.0,26.498]
[1746036626767,5.59105501,1788.6,1788.1,11.85524269]
[1746036626970,5.59103379,1788.6,1788.2,5.59200535]
[1746036627191,5.5908061,1788.7,1788.3,11.18360719]
[1746036627376,5.5908061,1788.7,1788.3,5.59172494]
[1746036627692,5.59099152,1788.6,1788.2,7.33678489]
[1746036628060,5.59099152,1788.6,1788.2,1.74473627]
[1746036628298,0.9233,1789.1,1788.3,5.59180396]
[1746036628627,5.59088395,1788.7,1788.3,5.59174741]
[1746036628788,5.5900872,1788.9,1788.2,5.59194892]
[1746036628989,5.59122456,1788.6,1788.2,5.59194892]
[1746036629319,0.9233,1789.1,1788.3,5.59180241]
[1746036629628,0.9233,1789.1,1788.4,5.59145154]
[1746036629629,5.59061352,1788.8,1788.4,5.59145154]
[1746036629924,5.58971492,1789.0,1788.4,5.59145154]
[1746036630224,5.59142938,1788.5,1788.1,11.85539043]
[1746036630425,5.5916817,1788.4,1788.1,6.263]
[1746036630724,5.59189215,1788.4,1788.1,6.263]
[1746036631116,5.59189215,1788.4,1788.1,11.8554999]
[1746036631514,5.5919326,1788.3,1788.1,6.263]
[1746036631715,5.5919326,1788.3,1788.2,0.22759546]
[1746036632065,6.53321809,1788.5,1787.8,6.06]
[1746036632221,5.59190292,1788.3,1788.2,0.17334856]
[1746036632532,5.59190292,1788.3,1787.9,5.59297415]
[1746036632709,11.18405427,1788.3,1788.0,0.15822418]
[1746036632908,5.59252838,1788.1,1788.0,0.15822418]
[1746036633118,5.59225879,1788.2,1787.8,5.59327116]
[1746036633292,5.59225879,1788.2,1787.9,0.1582329]
[1746036633497,5.59225879,1788.2,1787.8,7.43097945]
[1746036633733,5.59175166,1788.4,1788.0,5.59263532]
[1746036633905,5.59146782,1788.5,1788.1,0.15821546]
[1746036634113,5.59146782,1788.5,1788.1,5.75064503]
[1746036634114,5.59160972,1788.4,1788.1,5.75064503]
[1746036634437,5.59146782,1788.5,1788.1,5.75072977]
[1746036634603,5.590965,1788.6,1788.1,0.15821546]
[1746036634810,5.59221563,1788.2,1787.8,5.59331838]
[1746036635011,5.5920315,1788.3,1787.9,0.15961378]
[1746036635221,6.54925209,1788.2,1787.5,5.59416072]
[1746036635532,6.54949585,1788.2,1787.7,5.59361675]
[1746036635705,5.5925978,1788.1,1787.8,0.13360169]
[1746036636099,5.59261562,1788.1,1787.8,0.13360169]
[1746036636295,6.54940357,1788.2,1787.8,5.72702373]
[1746036636494,6.55075127,1788.5,1787.8,1.26566556]
[1746036636721,5.59278648,1788.1,1787.8,0.13360169]
[1746036637127,5.59238664,1788.2,1787.8,5.72678475]
[1746036637311,5.59283781,1788.1,1787.8,0.13360169]
[1746036637510,5.59283781,1788.1,1787.7,5.5936611]
[1746036637725,5.59240625,1788.2,1787.8,5.72682783]
[1746036637928,5.59240625,1788.2,1787.8,6.2995662]
[1746036638116,5.59240625,1788.2,1787.8,11.89284793]
[1746036638315,5.59240625,1788.2,1787.8,11.89284541]
[1746036638512,11.18418827,1788.3,1787.9,5.59296074]
[1746036638834,5.59204934,1788.3,1788.0,0.13358425]
[1746036639042,5.59175235,1788.4,1788.0,5.72636305]
[1746036639238,5.59252838,1788.1,1788.0,0.13358425]
[1746036639728,5.59185117,1788.4,1788.0,0.13358425]
[1746036639914,5.59309151,1788.0,1787.6,5.59391185]
[1746036640114,5.59262503,1788.1,1787.7,5.72720825]
[1746036640423,5.59233345,1788.2,1787.8,5.59327278]
[1746036640626,5.59233345,1788.2,1787.9,5.72668987]
[1746036640837,5.59264118,1788.1,1787.9,0.13359297]
[1746036641236,5.59264118,1788.1,1787.8,5.59340334]
[1746036641427,5.59252838,1788.1,1788.0,0.13358425]
[1746036641628,5.5924011,1788.2,1787.6,5.59409263]
[1746036641837,5.59271811,1788.1,1787.7,5.72722072]
[1746036642018,5.59271811,1788.1,1787.8,5.59346356]
[1746036642219,5.59271811,1788.1,1787.9,0.13359297]
[1746036642552,5.59235803,1788.2,1788.0,0.13358425]
[1746036642854,5.59235803,1788.2,1787.9,5.59313345]
[1746036643019,5.59176582,1788.4,1788.1,0.13624036]
[1746036643220,5.59176582,1788.4,1788.0,5.59274337]
[1746036643419,5.592032,1788.3,1788.1,0.13624036]
[1746036643758,5.59260271,1788.1,1787.7,5.59360718]
[1746036644058,5.59260271,1788.1,1787.8,0.13626652]
[1746036644257,5.59315397,1787.9,1787.8,0.13626652]
[1746036644635,0.9512,1788.0,1787.4,11.85754844]
[1746036644860,5.59392545,1787.7,1787.5,0.11309948]
[1746036645437,5.59334713,1787.9,1787.5,5.70735588]
[1746036645639,5.59334713,1787.9,1787.5,0.11309948]
[1746036645839,5.59340471,1787.9,1787.5,0.11309948]
[1746036646054,5.59340471,1787.9,1787.5,5.70746834]
[1746036646572,0.9512,1788.0,1787.5,0.11309948]
[1746036646729,5.59409263,1787.6,1787.5,0.11309948]
[1746036646923,5.60897498,1787.6,1786.9,20.324]
[1746036647151,5.5955283,1787.2,1787.0,0.10684559]
[1746036647557,11.19114282,1787.2,1787.0,0.10684559]
[1746036647789,5.5955283,1787.2,1787.0,0.10684559]
[1746036648190,5.59565776,1787.1,1787.0,0.10684559]
[1746036648459,5.59554421,1787.2,1787.0,0.10684559]
[1746036648793,5.59550268,1787.2,1787.0,0.10684559]
[1746036649095,5.59565776,1787.1,1787.0,0.10684559]
[1746036650799,1.31141963,1787.5,1786.9,5.59599925]
[1746036651014,5.59515726,1787.3,1787.0,0.10684559]
[1746036651807,5.59537241,1787.2,1786.8,5.59639743]
[1746036652013,5.59581099,1787.1,1786.9,0.10685432]
[1746036652215,5.59556793,1787.2,1786.9,0.10685432]
[1746036652501,6.90585247,1787.5,1786.9,0.10685432]
[1746036652802,5.59545437,1787.2,1786.9,0.10685432]
[1746036653314,5.5953329,1787.3,1786.9,0.10685432]
[1746036653486,5.59551355,1787.2,1786.9,0.10685432]
[1746036654408,5.59567921,1787.1,1786.9,0.10685432]
[1746036654630,5.59551355,1787.2,1786.9,0.10685432]
[1746036654806,5.59518904,1787.3,1786.9,5.7029903]
[1746036654807,5.59519135,1787.3,1786.9,5.7029903]
[1746036654988,5.59539064,1787.2,1786.9,5.7029903]
[1746036655192,5.59519135,1787.3,1786.9,5.7029903]
[1746036655411,11.19050301,1787.3,1786.9,5.7029903]
[1746036655712,5.59388407,1787.7,1787.2,5.59515609]
[1746036655896,5.59388407,1787.7,1787.2,5.5951181]
[1746036656096,6.54397106,1787.8,1787.4,5.5946037]
[1746036656299,0.9505,1787.8,1787.4,5.5946037]
[1746036656499,5.59331512,1787.9,1787.5,0.11064809]
[1746036656699,5.59331512,1787.9,1787.5,5.70483547]
[1746036656904,5.59331512,1787.9,1787.6,5.59408671]
[1746036657214,5.59331512,1787.9,1787.7,0.10902296]
[1746036657511,5.59331512,1787.9,1787.5,5.59430862]
[1746036657711,5.59331512,1787.9,1787.8,0.10901423]
[1746036657885,5.59347926,1787.8,1787.5,5.59428009]
[1746036658205,5.59360974,1787.8,1787.4,6.52180201]
[1746036658581,5.59360311,1787.8,1787.4,6.52191762]
[1746036658782,5.59360311,1787.8,1787.4,6.52181782]
[1746036658983,5.59360311,1787.8,1787.5,0.1090404]
[1746036659182,5.59326908,1787.9,1787.5,5.70322047]
[1746036659377,6.53850523,1788.1,1787.6,5.59390706]
[1746036659582,5.59222961,1788.2,1787.9,5.59304949]
[1746036659806,5.59210282,1788.3,1788.0,0.10767652]
[1746036660315,5.59199779,1788.3,1788.0,0.10767652]
[1746036660607,6.50006157,1788.4,1787.8,0.9121]
[1746036660776,5.59204488,1788.3,1787.9,0.10768524]
[1746036660980,5.59204488,1788.3,1787.8,1.56268356]
[1746036661313,5.59204488,1788.3,1787.9,0.10648022]
[1746036661512,5.59178164,1788.4,1787.9,0.10648022]
[1746036661710,5.59178164,1788.4,1787.9,0.7821704]
[1746036661897,5.59178164,1788.4,1788.0,0.10572568]
[1746036662479,0.9666,1788.7,1788.0,0.1616462]
[1746036662779,7.0026,1789.0,1788.2,6.53871005]
[1746036662978,5.5907996,1788.7,1788.3,0.10569953]
[1746036663415,5.59030199,1788.9,1788.4,5.64745898]
[1746036663585,5.59030199,1788.9,1788.5,0.10516582]
[1746036663790,5.59030199,1788.9,1788.4,5.64732648]
[1746036663985,5.59030199,1788.9,1788.4,11.23873131]
[1746036664216,5.59030199,1788.9,1788.4,5.59140483]
[1746036664381,5.59038328,1788.8,1788.4,6.33325558]
[1746036664582,5.59038328,1788.8,1788.4,0.68594648]
[1746036664794,5.59038328,1788.8,1788.4,6.27748843]
[1746036665413,5.58971696,1789.0,1788.4,0.68594648]
[1746036665610,5.59123235,1788.6,1788.2,6.9827]
[1746036665811,5.59141956,1788.5,1788.2,6.9827]
[1746036666023,5.59165548,1788.4,1788.2,6.9827]
[1746036666225,5.59165548,1788.4,1788.2,0.9467]
[1746036666427,0.9504,1788.7,1788.2,0.9467]
[1746036666601,5.59190292,1788.3,1788.2,0.9467]
[1746036666803,5.59246324,1788.2,1787.9,0.9212]
[1746036667099,5.59232403,1788.2,1787.9,0.9212]
[1746036667333,5.59237614,1788.2,1787.9,0.9212]
[1746036667493,5.59205791,1788.3,1787.9,6.5701036]
[1746036667689,11.18372613,1788.4,1788.0,5.59281906]
[1746036667929,5.59186908,1788.4,1787.9,6.51414817]
[1746036668103,5.5920427,1788.3,1787.9,7.16560633]
[1746036668625,5.59221697,1788.2,1787.9,1.57261482]
[1746036668819,5.59284116,1788.0,1787.9,0.9212]
[1746036669022,5.59266295,1788.1,1787.7,11.62860705]
[1746036669191,11.18480619,1788.2,1787.8,5.59331346]
[1746036669395,5.59255856,1788.1,1787.7,6.035]
[1746036669711,5.59332729,1787.9,1787.7,6.035]
[1746036670025,5.59347858,1787.8,1787.6,0.9352]
[1746036670214,5.59332729,1787.9,1787.6,0.9352]
[1746036670416,5.59300106,1788.0,1787.6,1.64408049]
[1746036670621,5.59329775,1787.9,1787.6,1.58814538]
[1746036670801,5.59329775,1787.9,1787.6,0.9352]
[1746036670997,5.59365917,1787.8,1787.6,0.9352]
[1746036671217,5.5933737,1787.9,1787.6,0.9352]
[1746036671496,5.59266301,1788.1,1787.6,0.9352]
[1746036671697,11.18479892,1788.2,1787.8,5.59345406]
[1746036671898,11.18482057,1788.2,1787.8,6.7121551]
[1746036672229,5.59207911,1788.3,1787.9,5.59292953]
[1746036672429,5.59191023,1788.3,1787.9,5.59300498]
[1746036672635,5.59201734,1788.3,1787.9,5.64888593]
[1746036672942,5.59171035,1788.4,1788.0,5.59282624]
[1746036673107,5.59199852,1788.3,1787.9,5.59297848]
[1746036673313,5.59240249,1788.2,1787.9,1.83390215]
[1746036673512,5.5921407,1788.3,1787.9,7.42692088]
[1746036673713,5.59232228,1788.2,1787.9,1.83390215]
[1746036674025,0.9678,1788.6,1787.8,11.62735655]
[1746036674231,5.59234093,1788.2,1787.8,11.62735655]
[1746036674449,5.59212233,1788.3,1787.9,5.59294219]
[1746036674795,5.59177881,1788.4,1788.0,5.59280105]
[1746036674998,5.59177881,1788.4,1788.0,5.59266366]
[1746036675227,5.59193142,1788.3,1787.9,5.59304748]
[1746036675431,5.59208685,1788.3,1787.9,5.59305194]
[1746036675601,5.59208685,1788.3,1787.9,6.75575713]
[1746036675797,5.59174135,1788.4,1788.0,5.5928349]
[1746036676033,5.59174135,1788.4,1788.0,5.59262876]
[1746036676456,5.59082845,1788.7,1788.2,5.59190691]
[1746036676741,3.9464,1788.9,1788.5,5.59121793]
[1746036676742,5.5902668,1788.9,1788.5,5.59121793]
[1746036676940,5.58983665,1789.0,1788.5,6.70936729]
[1746036677181,11.17982373,1789.0,1788.6,5.590817]
[1746036677344,5.59003778,1788.9,1788.6,5.590817]
[1746036677543,5.59003778,1788.9,1788.5,5.59108974]
[1746036677544,5.58983665,1789.0,1788.7,5.590652]
[1746036677740,5.5889942,1789.3,1788.6,0.97199922]
[1746036677945,5.5888961,1789.3,1788.9,5.58987357]
[1746036678129,6.50656747,1789.4,1789.0,5.5896562]
[1746036678445,5.59364573,1789.4,1789.0,5.58948006]
[1746036678644,5.58881116,1789.3,1789.0,5.58948006]
[1746036678850,5.58881116,1789.3,1788.9,5.58986127]
[1746036679049,5.58881116,1789.3,1788.6,6.50691662]
[1746036679050,5.58987817,1789.0,1788.6,6.50691662]
[1746036679249,5.58953376,1789.1,1788.7,5.59050246]
[1746036679630,5.58953376,1789.1,1788.7,5.59045806]
[1746036679950,5.59346869,1789.4,1788.7,5.59045806]
[1746036679951,5.5936076,1789.4,1789.0,5.58969129]
[1746036680160,5.5936076,1789.4,1789.0,11.17927418]
[1746036680355,0.005,1789.4,1789.1,7.67464971]
[1746036680524,0.005,1789.4,1789.3,5.58877773]
[1746036681252,0.005,1789.4,1789.3,6.55687773]
[1746036681427,0.005,1789.4,1789.3,13.16687773]
[1746036681748,0.005,1789.4,1789.3,12.61687773]
[1746036681940,0.005,1789.4,1789.3,13.957397]
[1746036682442,0.005,1789.4,1789.3,14.507397]
[1746036682949,0.005,1789.4,1789.3,13.957397]
[1746036684045,0.005,1789.4,1789.3,25.507397]
[1746036686129,0.005,1789.4,1789.3,17.507397]
[1746036686978,0.005,1789.4,1789.3,13.957397]
[1746036687475,5.58755898,1789.7,1789.3,13.95714822]
[1746036687769,5.58736386,1789.8,1789.4,6.75106363]
[1746036688138,5.58756668,1789.7,1789.4,1.16270519]
[1746036688340,5.58743349,1789.8,1789.3,13.95723449]
[1746036688555,5.58743349,1789.8,1789.4,5.58846013]
[1746036688718,5.58814292,1789.6,1789.3,0.9681]
[1746036689052,5.58814292,1789.6,1789.2,5.58903848]
[1746036689256,0.9538,1789.8,1789.1,0.9284]
[1746036689462,5.58768262,1789.7,1789.1,5.58921421]
[1746036689634,5.58795646,1789.6,1789.2,5.58895962]
[1746036689834,5.58772891,1789.7,1789.0,11.869]
[1746036690227,5.5880009,1789.6,1789.2,5.58889577]
[1746036692566,5.58834518,1789.5,1789.1,5.5892254]
[1746036692767,5.58802246,1789.6,1788.9,11.3960228]
[1746036692977,5.58802246,1789.6,1789.2,5.5888329]
[1746036693278,5.58837588,1789.5,1789.1,5.58939441]
[1746036693567,5.58867164,1789.4,1789.0,12.31865102]
[1746036693727,0.9016,1789.7,1789.0,6.72931329]
[1746036693927,5.58900102,1789.3,1788.9,11.39589165]
[1746036694158,5.58864411,1789.4,1789.0,5.58969307]
[1746036694361,5.58639684,1790.1,1789.1,1.49988948]
[1746036694561,0.9388,1790.4,1789.7,5.5873466]
[1746036694771,5.58607785,1790.2,1789.8,5.58720405]
[1746036695070,9.06102635,1790.4,1789.6,0.894]
[1746036695276,5.58694293,1789.9,1789.5,5.806]
[1746036695431,6.49756234,1789.9,1789.5,11.39405166]
[1746036695958,5.58603043,1790.2,1789.7,5.5874224]
[1746036695959,0.9105,1790.1,1789.7,5.5874224]
[1746036696159,11.17238932,1790.2,1789.8,5.5870782]
[1746036696334,5.58613724,1790.2,1789.8,5.5870782]
[1746036696874,12.36900705,1790.5,1790.1,5.58614587]
[1746036697361,5.58552717,1790.4,1790.0,5.5863811]
[1746036697538,5.5856563,1790.3,1789.9,5.58668726]
[1746036697939,5.58579118,1790.3,1789.9,5.58668726]
[1746036698143,8.58412627,1790.8,1789.9,5.58668726]
[1746036698144,5.92545432,1791.8,1790.0,5.86186088]
[1746036698449,5.58307246,1791.2,1790.7,5.58409749]
[1746036698635,6.50308683,1791.5,1790.5,5.86183393]
[1746036698830,5.58328907,1791.1,1790.7,5.58427407]
[1746036699035,5.58328907,1791.1,1790.7,5.58434402]
[1746036699235,6.50296537,1791.5,1790.7,5.58416081]
[1746036699236,5.5830181,1791.2,1790.7,5.58416081]
[1746036699454,5.58327531,1791.1,1790.7,5.58416081]
[1746036700170,12.30694249,1791.5,1790.7,5.58416081]
[1746036700171,5.58301015,1791.2,1790.7,5.58416081]
[1746036700364,5.58301015,1791.2,1790.7,6.70103548]
[1746036700551,5.58301015,1791.2,1790.8,5.58396383]
[1746036700738,5.58318343,1791.1,1790.5,5.806]
[1746036701059,5.58318343,1791.1,1790.5,11.39101766]
[1746036701060,5.58371639,1791.0,1790.5,11.39101766]
[1746036701263,5.58361108,1791.0,1790.5,11.39085507]
[1746036701465,0.03,1792.0,1790.9,0.55]
[1746036701629,7.81971578,1791.9,1791.4,5.58209878]
[1746036701831,7.81971578,1791.9,1791.6,5.58147343]
[1746036701832,2.23891269,1791.9,1791.6,5.58147343]
[1746036702229,2.23891269,1791.9,1791.7,5.58129151]
[1746036703477,2.23891269,1791.9,1791.7,5.63709451]
[1746036703677,2.23891269,1791.9,1791.7,5.58129151]
[1746036704280,5.58160303,1791.6,1791.5,5.803]
[1746036704476,5.58222619,1791.4,1791.3,8.0]
[1746036704664,5.58160303,1791.6,1791.3,8.0]
[1746036704842,5.58222619,1791.4,1791.3,8.0]
[1746036705042,11.16474074,1791.4,1790.9,12.38014901]
[1746036705247,5.58222619,1791.4,1790.9,13.65020777]
[1746036705581,5.58222619,1791.4,1791.0,5.58336593]
[1746036706577,5.58160303,1791.6,1790.9,8.06665876]
[1746036706785,5.58301125,1791.2,1790.9,5.83]
[1746036707150,5.58326039,1791.1,1790.9,5.83]
[1746036707450,0.9837,1791.3,1790.6,24.94831139]
[1746036707755,5.58398849,1790.9,1790.6,24.298]
[1746036707954,5.5839397,1790.9,1790.6,5.829]
[1746036708186,5.58284948,1791.2,1790.7,5.58439969]
[1746036708483,5.829,1791.5,1791.0,5.58343705]